bitfinex/quotes_SOLUSD_20251206
["timestamp","ask_amount","ask_price","bid_price","bid_amount"]
[1765043718346,13.96014978,132.97,132.94,7.18408713]
[1765043718544,5.15020486,132.97,132.94,7.18408713]
[1765043726248,19.11035464,132.97,132.94,7.18408713]
[1765043726546,5.15020486,132.97,132.94,7.18408713]
[1765043727344,5.15020486,132.96,132.93,8.26]
[1765043727747,5.15020486,132.96,132.93,15.78271492]
[1765043731867,19.11035464,132.97,132.93,15.78271492]
[1765043735579,26.63086734,132.97,132.93,15.78271492]
[1765043738262,12.67071756,132.97,132.93,15.78271492]
[1765043739077,5.15020486,132.96,132.93,15.78271492]
[1765043743088,12.67071756,132.97,132.93,15.78271492]
[1765043750017,7.5205127,132.97,132.93,15.78271492]
[1765043750317,12.67071756,132.97,132.93,15.78271492]
[1765043752416,3.29601944,132.96,132.93,15.78271492]
[1765043753515,10.81653214,132.97,132.93,15.78271492]
[1765043760432,3.29601944,132.96,132.93,15.78271492]
[1765043769841,7.62008839,132.98,132.94,8.80994492]
[1765043770134,10.91610783,132.98,132.95,8.26]
[1765043770340,3.29601944,132.97,132.95,8.26]
[1765043773946,10.91610783,132.98,132.95,8.26]
[1765043778176,3.29601944,132.97,132.95,8.26]
[1765043781861,3.29601944,132.96,132.95,8.26]
[1765043783870,23.95209344,132.98,132.95,8.26]
[1765043789576,23.9520942,132.98,132.95,8.26]
[1765043789881,3.29601944,132.97,132.95,8.26]
[1765043790089,7.62008915,132.98,132.95,8.26]
[1765043790310,3.29601944,132.96,132.95,8.26]
[1765043791207,3.29601944,132.97,132.95,8.26]
[1765043791408,3.29601944,132.96,132.95,8.26]
[1765043792034,3.29601944,132.96,132.93,8.80994492]
[1765043792236,7.52077815,132.97,132.95,8.26]
[1765043792442,24.0527832,132.97,132.95,8.26]
[1765043793545,3.29601944,132.96,132.95,8.26]
[1765043793839,10.8170784,132.96,132.95,8.26]
[1765043795141,3.29601944,132.96,132.95,8.26]
[1765043798075,19.62909621,132.96,132.95,8.26]
[1765043804480,27.15015517,132.96,132.95,8.26]
[1765043805351,19.62909621,132.96,132.95,8.26]
[1765043812392,21.48289746,132.96,132.95,8.26]
[1765043816289,16.33307677,132.96,132.95,8.26]
[1765043816489,21.48289746,132.96,132.95,8.26]
[1765043823586,16.33307677,132.96,132.95,8.26]
[1765043823788,5.14982069,132.97,132.95,8.26]
[1765043824110,21.48289746,132.97,132.95,8.26]
[1765043827083,5.14982069,132.96,132.95,8.26]
[1765043827600,21.48289746,132.96,132.95,8.26]
[1765043828208,5.14982069,132.96,132.95,8.26]
[1765043829406,5.14982069,132.96,132.94,8.80994492]
[1765043829590,5.14982069,132.96,132.95,8.24]
[1765043830305,13.95976561,132.96,132.95,8.24]
[1765043835523,5.14982069,132.96,132.95,8.24]
[1765043839323,27.73083006,132.97,132.95,8.24]
[1765043842627,5.14982069,132.96,132.95,8.24]
[1765043845132,27.73083006,132.97,132.95,15.76162467]
[1765043848231,22.58100937,132.97,132.95,15.76162467]
[1765043848416,5.24982069,132.98,132.95,15.76162467]
[1765043848606,21.01144536,132.98,132.95,15.76162467]
[1765043858948,5.24982069,132.98,132.95,15.76162467]
[1765043859618,20.91144536,132.97,132.95,15.76162467]
[1765043860148,27.82913051,132.98,132.95,15.76162467]
[1765043865644,22.67930982,132.98,132.96,8.80994492]
[1765043865824,22.67930982,132.98,132.97,8.24]
[1765043867248,27.82913051,132.98,132.97,8.24]
[1765043873934,22.67930982,132.98,132.97,8.24]
[1765043885444,0.1,132.98,132.97,8.24]
[1765043886369,0.1,132.98,132.97,24.57043826]
[1765043886750,0.1,132.98,132.97,47.14465098]
[1765043894080,0.1,133.01,132.97,47.14465098]
[1765043894081,0.1,133.01,132.98,8.80994492]
[1765043894259,0.1,133.01,132.99,11.53457949]
[1765043894667,0.1,133.01,133.0,3.39457949]
[1765043895068,0.1,133.01,133.0,14.20795597]
[1765043897189,0.1,133.01,133.0,23.01790089]
[1765043897769,1e-08,133.01,133.0,23.01790089]
[1765043901367,1e-08,133.02,133.01,8.80994492]
[1765043901574,1e-08,133.02,133.01,20.34452441]
[1765043902204,1e-08,133.02,133.01,23.35306113]
[1765043903588,1e-08,133.02,133.01,30.87129284]
[1765043904291,1e-08,133.02,133.01,31.62311601]
[1765043904595,1e-08,133.04,133.01,50.41869528]
[1765043904777,1e-08,133.04,133.03,12.10452441]
[1765043905091,1e-08,133.04,133.03,20.34452441]
[1765043905389,1e-08,133.04,133.03,23.35260863]
[1765043905896,1e-08,133.04,133.03,30.86971003]
[1765043910195,1e-08,133.04,133.03,27.57513054]
[1765043923307,1e-08,133.04,133.03,19.33513054]
[1765043923609,1e-08,133.04,133.03,24.56704632]
[1765043924297,3.2945795,133.04,133.03,7.5171014]
[1765043924504,3.2945795,133.04,133.03,15.7571014]
[1765043934041,3.2945795,133.04,133.02,7.51766651]
[1765043934238,3.2945795,133.04,133.03,8.24]
[1765043934544,5.14368814,133.04,133.03,8.24]
[1765043936146,5.14368814,133.04,133.03,15.7571014]
[1765043939847,1e-08,133.04,133.03,15.7571014]
[1765043948546,1e-08,133.04,133.03,24.56704632]
[1765043963174,1e-08,133.04,133.03,16.32704632]
[1765043963353,5.14368814,133.04,133.02,7.5176135]
[1765043963681,5.14368813,133.03,133.02,7.5176135]
[1765043963856,5.14368813,133.03,133.02,15.7576135]
[1765043965978,5.14368813,133.03,133.02,7.5176135]
[1765043966286,5.14368813,133.03,133.02,15.7576135]
[1765043970395,5.14368813,133.03,133.02,7.5176135]
[1765043970695,5.14368813,133.03,133.02,15.7576135]
[1765043974666,5.14368813,133.03,133.02,8.24]
[1765043985299,5.14368813,133.03,133.02,8.95]
[1765043988696,5.14368813,133.03,133.02,8.24]
[1765043989004,11.10737629,133.03,133.01,8.24]
[1765043989210,5.86368813,133.02,133.01,8.24]
[1765043989882,5.14368813,133.02,133.01,8.24]
[1765043994318,5.14368813,133.02,133.01,8.9]
[1765043994523,3.29335499,133.02,133.01,8.9]
[1765044000236,5.24368816,133.03,133.01,16.41823171]
[1765044000405,1e-08,133.04,133.02,8.93]
[1765044000623,3.29335499,133.03,133.01,0.69]
[1765044000947,8.17661262,133.04,133.02,0.69]
[1765044001141,11.46996762,133.04,133.02,0.69]
[1765044001347,1e-08,133.04,133.03,8.26]
[1765044001946,1e-08,133.04,133.03,8.95]
[1765044002329,1e-08,133.04,133.03,16.4671014]
[1765044004553,1e-08,133.04,133.03,8.95]
[1765044005946,3.953355,133.04,133.03,8.26]
[1765044006274,3.953355,133.04,133.02,18.26]
[1765044006440,3.95335499,133.03,133.02,10.0]
[1765044006755,11.47045639,133.03,133.02,10.0]
[1765044012252,21.47045639,133.03,133.02,10.0]
[1765044017378,20.81045639,133.03,133.02,10.0]
[1765044026382,21.53045639,133.03,133.02,10.0]
[1765044027690,20.81045639,133.03,133.02,10.0]
[1765044028272,21.53045639,133.03,133.02,10.0]
[1765044029082,20.81045639,133.03,133.02,10.0]
[1765044034000,37.83932039,133.03,133.02,10.0]
[1765044034180,142.13932039,133.03,133.02,10.0]
[1765044042214,16.308864,132.99,132.96,0.67]
[1765044042422,3.29335499,132.97,132.96,8.26]
[1765044043031,3.29335499,132.97,132.96,8.93]
[1765044056427,5.14923358,132.97,132.96,8.93]
[1765044061062,5.14923358,132.97,132.96,8.26]
[1765044061264,5.14923358,132.97,132.96,0.72]
[1765044061460,13.34987253,132.97,132.95,8.26]
[1765044061646,5.82923358,132.96,132.95,8.26]
[1765044061958,5.14923358,132.96,132.95,8.26]
[1765044062731,13.40923358,132.96,132.95,8.26]
[1765044063648,13.40923358,132.96,132.95,8.98]
[1765044063846,5.14923358,132.96,132.95,8.98]
[1765044067932,5.14923358,132.97,132.95,8.98]
[1765044068135,23.82860212,132.99,132.96,0.72]
[1765044068345,5.14923358,132.97,132.96,0.72]
[1765044079375,5.14923358,132.98,132.96,0.72]
[1765044083578,5.14923358,132.98,132.96,8.24097793]
[1765044083785,5.14923358,132.98,132.97,0.67]
[1765044086709,5.14923358,132.98,132.96,7.52097793]
[1765044086907,5.14923358,132.98,132.96,8.19097793]
[1765044088407,5.14923358,132.98,132.96,0.67]
[1765044090411,5.14923358,132.98,132.96,8.19098343]
[1765044092427,5.14923358,132.98,132.96,0.67]
[1765044094547,5.14923358,132.97,132.96,0.67]
[1765044097741,5.84923358,132.97,132.95,8.26]
[1765044098046,5.84923358,132.97,132.94,8.26]
[1765044098047,5.84923358,132.96,132.94,8.26]
[1765044098269,5.14923358,132.95,132.94,8.26]
[1765044099224,27.7336428,132.95,132.94,8.26]
[1765044101451,27.7336428,132.95,132.94,8.93]
[1765044103552,27.7336428,132.95,132.94,8.26]
[1765044103751,28.4336428,132.95,132.91,7.52375044]
[1765044104055,5.14923358,132.93,132.92,8.26]
[1765044105055,28.43874451,132.93,132.91,8.26]
[1765044105264,5.14923358,132.92,132.91,8.26]
[1765044105449,5.14923358,132.92,132.9,8.19438197]
[1765044105645,9.70994492,132.92,132.91,8.26]
[1765044105951,14.1591785,132.92,132.91,8.26]
[1765044106135,14.1591785,132.92,132.89,9.13]
[1765044106337,5.14923358,132.9,132.89,8.46]
[1765044106834,14.8591785,132.9,132.89,8.46]
[1765044107349,14.8591785,132.9,132.89,0.2]
[1765044109237,14.8591785,132.9,132.88,8.16]
[1765044109433,14.8591785,132.9,132.88,8.83]
[1765044109634,5.84923358,132.89,132.87,0.2]
[1765044109845,5.14923358,132.88,132.87,0.2]
[1765044110048,5.81923358,132.88,132.87,0.2]
[1765044110864,5.14923358,132.88,132.87,0.2]
[1765044112538,8.83,132.89,132.87,0.89]
[1765044112762,13.97923358,132.89,132.88,0.69]
[1765044113671,8.83,132.89,132.88,8.95]
[1765044115980,13.97923358,132.89,132.87,0.2]
[1765044116169,13.97923358,132.89,132.88,8.26]
[1765044116550,5.14923358,132.89,132.88,8.26]
[1765044116750,13.40923358,132.89,132.88,8.95]
[1765044118453,8.26,132.89,132.88,8.95]
[1765044120807,10.82309069,132.91,132.88,8.95]
[1765044121076,8.26,132.89,132.88,8.95]
[1765044126478,10.82309069,132.91,132.88,8.95]
[1765044126777,8.26,132.9,132.89,0.69]
[1765044128077,3.29913642,132.91,132.89,0.69]
[1765044128369,14.32418979,132.91,132.89,0.69]
[1765044129056,3.29913642,132.91,132.89,0.69]
[1765044129380,11.02505337,132.9,132.89,0.69]
[1765044129880,3.29913642,132.91,132.89,0.69]
[1765044130081,15.00418979,132.91,132.89,0.69]
[1765044130270,14.32418979,132.91,132.89,0.69]
[1765044130581,3.29913642,132.91,132.89,0.69]
[1765044130879,11.02505337,132.9,132.89,0.69]
[1765044136069,3.29913642,132.91,132.89,0.69]
[1765044136361,19.0846737,132.91,132.89,0.69]
[1765044140113,19.7646737,132.91,132.89,0.69]
[1765044140404,15.78553728,132.9,132.89,0.69]
[1765044145315,3.29913642,132.91,132.89,0.69]
[1765044145703,19.0846737,132.91,132.89,0.69]
[1765044147891,19.7646737,132.91,132.89,0.69]
[1765044150602,19.0846737,132.91,132.89,0.69]
[1765044159922,3.29913642,132.91,132.89,0.69]
[1765044168029,10.82142688,132.94,132.89,11.51407337]
[1765044168228,10.82142688,132.94,132.9,3.29913642]
[1765044168540,11.50142688,132.94,132.91,8.26]
[1765044168706,11.50142688,132.94,132.91,8.97]
[1765044169025,11.50142688,132.94,132.92,0.71]
[1765044169231,27.12981663,132.95,132.92,0.71]
[1765044169416,27.80981663,132.95,132.92,0.71]
[1765044169597,27.12981663,132.95,132.92,0.71]
[1765044169802,3.29913642,132.94,132.92,0.71]
[1765044174128,27.12981663,132.95,132.92,0.71]
[1765044174330,27.78981663,132.95,132.92,0.71]
[1765044178343,3.29913642,132.94,132.92,0.71]
[1765044180343,5.15160775,132.94,132.92,0.71]
[1765044181143,5.15160775,132.94,132.91,8.26]
[1765044181144,5.15160775,132.93,132.91,8.93]
[1765044181362,5.81160775,132.92,132.87,36.08510886]
[1765044181531,5.15160775,132.9,132.88,0.67]
[1765044181737,5.15160775,132.9,132.88,8.93]
[1765044182433,5.15160775,132.89,132.88,8.93]
[1765044182951,5.81160775,132.9,132.88,8.93]
[1765044183460,5.15160775,132.9,132.88,8.93]
[1765044184016,5.15160775,132.89,132.88,8.26]
[1765044185343,5.81160775,132.89,132.87,0.2]
[1765044185552,0.66,132.89,132.88,8.26]
[1765044186441,7.52446042,132.9,132.88,8.26]
[1765044186620,5.15160775,132.89,132.88,8.26]
[1765044189051,5.15160775,132.89,132.87,0.87]
[1765044189228,5.15160775,132.89,132.88,8.26]
[1765044190227,8.18446042,132.9,132.88,8.26]
[1765044190636,5.15160775,132.89,132.88,8.26]
[1765044192041,5.15160775,132.89,132.88,8.93]
[1765044193546,5.15160775,132.89,132.88,8.26]
[1765044197121,15.78405672,132.91,132.88,8.93]
[1765044197326,5.15160775,132.89,132.88,8.93]
[1765044198852,5.15160775,132.9,132.88,8.93]
[1765044199752,5.15160775,132.89,132.88,8.93]
[1765044201747,5.83160775,132.89,132.87,0.2]
[1765044201950,5.83160775,132.88,132.87,0.2]
[1765044203831,14.09160775,132.88,132.87,0.2]
[1765044204754,21.61719474,132.88,132.87,0.2]
[1765044226185,16.308864,132.85,132.82,0.2]
[1765044226387,21.46047175,132.83,132.82,0.2]
[1765044226863,22.14047175,132.83,132.82,0.2]
[1765044227063,25.15535774,132.83,132.82,0.2]
[1765044227697,33.41535774,132.83,132.82,0.2]
[1765044228065,40.94377752,132.83,132.82,0.2]
[1765044228261,24.63491352,132.83,132.81,0.2]
[1765044228458,22.14047175,132.82,132.81,0.2]
[1765044228876,25.15603961,132.82,132.81,0.2]
[1765044229388,32.6850262,132.82,132.81,0.2]
[1765044233087,32.6850262,132.82,132.8,0.2]
[1765044233288,5.84160775,132.81,132.8,0.2]
[1765044233686,8.85717561,132.81,132.8,0.2]
[1765044234293,16.3867291,132.81,132.8,0.2]
[1765044234795,120.6867291,132.81,132.8,0.2]
[1765044234967,119.9967291,132.81,132.8,0.2]
[1765044235166,119.9967291,132.81,132.8,0.85]
[1765044240582,3.01556786,132.81,132.8,0.85]
[1765044240781,5.15160775,132.82,132.8,0.85]
[1765044241097,5.15160775,132.82,132.81,0.65]
[1765044241690,8.16603934,132.82,132.81,0.65]
[1765044241885,3.01443159,132.82,132.81,0.65]
[1765044242193,8.16603934,132.82,132.81,0.65]
[1765044242399,6.31734133,132.82,132.81,0.65]
[1765044242695,3.01443159,132.82,132.81,0.65]
[1765044242898,6.31734133,132.82,132.81,0.65]
[1765044247209,3.30290974,132.82,132.81,0.65]
[1765044248019,3.01443159,132.83,132.81,0.65]
[1765044248509,6.31734133,132.83,132.81,0.65]
[1765044252007,7.52741361,132.85,132.81,0.65]
[1765044252207,18.56027356,132.85,132.81,0.65]
[1765044252708,18.56027356,132.85,132.81,8.17949028]
[1765044253031,18.56027356,132.85,132.82,0.65]
[1765044253326,3.30290974,132.84,132.82,0.65]
[1765044254306,3.30290974,132.84,132.82,8.91]
[1765044254515,3.30290974,132.84,132.83,0.65]
[1765044257758,10.83076279,132.84,132.83,0.65]
[1765044258053,27.370444,132.84,132.83,0.65]
[1765044261347,27.370444,132.84,132.8,16.53968121]
[1765044261548,0.7,132.83,132.81,8.26]
[1765044261925,8.26,132.82,132.81,8.26]
[1765044262344,8.26,132.82,132.81,8.95]
[1765044262737,19.09189633,132.82,132.81,8.95]
[1765044264267,10.83189633,132.82,132.81,8.95]
[1765044264963,3.30290974,132.82,132.81,8.95]
[1765044268864,8.95,132.83,132.81,8.95]
[1765044269072,3.30290974,132.84,132.82,0.69]
[1765044269266,12.25290974,132.84,132.82,0.69]
[1765044270968,10.83035561,132.85,132.82,0.69]
[1765044271174,8.26,132.84,132.82,0.69]
[1765044272085,10.83035561,132.85,132.82,0.69]
[1765044272399,26.6199005,132.85,132.82,0.69]
[1765044274300,3.30290974,132.84,132.82,0.69]
[1765044274716,15.78954489,132.85,132.82,0.69]
[1765044274996,131.43854952,132.86,132.82,8.21893075]
[1765044275188,16.308864,132.84,132.83,0.69]
[1765044277696,19.09245463,132.85,132.83,0.69]
[1765044277870,3.30290974,132.85,132.83,0.69]
[1765044278803,3.30290974,132.85,132.84,8.26]
[1765044279192,3.30290974,132.85,132.84,8.95]
[1765044279804,3.30290974,132.86,132.84,8.95]
[1765044280105,19.61177374,132.86,132.85,0.69]
[1765044288741,27.13853165,132.86,132.84,8.26]
[1765044289037,23.83562191,132.86,132.85,0.69]
[1765044290040,27.13853165,132.86,132.85,0.69]
[1765044292845,27.13853165,132.86,132.83,8.26]
[1765044293008,0.72,132.85,132.83,0.71]
[1765044293214,3.30290974,132.85,132.83,8.97]
[1765044293961,3.30290974,132.84,132.83,8.97]
[1765044301128,3.30290974,132.84,132.83,8.26]
[1765044301328,3.30290974,132.84,132.83,8.97]
[1765044302050,7.52738268,132.85,132.83,8.97]
[1765044302227,3.30290974,132.84,132.83,8.97]
[1765044304358,5.15942107,132.84,132.83,8.97]
[1765044312357,5.15942107,132.84,132.83,8.26]
[1765044312561,5.15942107,132.84,132.83,8.97]
[1765044312865,5.15942107,132.84,132.83,8.26]
[1765044313269,5.15942107,132.84,132.83,8.97]
[1765044316076,5.15942107,132.84,132.83,8.26]
[1765044316281,5.15942107,132.84,132.83,8.97]
[1765044321507,5.15942107,132.84,132.8,7.72996503]
[1765044321662,5.15942107,132.81,132.8,0.2]
[1765044322285,5.87942107,132.81,132.8,0.2]
[1765044322487,8.89453432,132.81,132.8,0.2]
[1765044325174,16.42408781,132.81,132.8,0.2]
[1765044342219,13.40897456,132.81,132.8,0.2]
[1765044349230,16.4243151,132.81,132.8,0.2]
[1765044361730,11.26489403,132.81,132.8,0.2]
[1765044362055,16.4243151,132.81,132.8,0.2]
[1765044362851,10.54489403,132.81,132.8,0.88]
[1765044363026,12.68897456,132.81,132.8,0.88]
[1765044366430,10.83400186,132.81,132.8,0.88]
[1765044369154,7.52955349,132.81,132.8,0.88]
[1765044369348,10.83400186,132.81,132.8,0.88]
[1765044385107,11.51400186,132.81,132.8,0.2]
[1765044385410,10.83400186,132.81,132.8,0.2]
[1765044386612,10.83400186,132.81,132.8,0.86]
[1765044389410,10.83400186,132.81,132.8,0.2]
[1765044390504,10.83400186,132.81,132.8,0.86]
[1765044394024,7.52914798,132.82,132.8,0.86]
[1765044394207,3.30444837,132.81,132.8,0.2]
[1765044394796,16.308864,132.83,132.8,0.86]
[1765044395115,12.11439329,132.85,132.81,17.06994492]
[1765044395425,3.30444837,132.85,132.81,17.06994492]
[1765044396035,3.30444837,132.84,132.81,17.06994492]
[1765044397025,10.8323742,132.84,132.8,7.72972746]
[1765044397208,3.30444837,132.81,132.8,0.2]
[1765044397529,3.98444837,132.81,132.8,0.2]
[1765044399716,11.51400186,132.81,132.8,0.2]
[1765044400336,27.82286586,132.81,132.8,0.2]
[1765044401001,31.12731423,132.81,132.8,0.2]
[1765044401201,31.12731423,132.81,132.79,0.2]
[1765044401402,7.28889674,132.8,132.79,0.2]
[1765044402122,14.81901722,132.8,132.79,0.2]
[1765044406528,11.51456885,132.8,132.79,0.2]
[1765044418238,14.81901722,132.8,132.79,0.2]
[1765044420438,8.21012048,132.8,132.79,0.2]
[1765044420639,14.81901722,132.8,132.79,0.2]
[1765044420842,11.51456885,132.8,132.79,0.2]
[1765044421241,14.81901722,132.8,132.79,0.2]
[1765044426043,11.51456885,132.8,132.79,0.2]
[1765044426357,13.37540246,132.8,132.79,0.2]
[1765044427253,7.53012048,132.8,132.79,0.2]
[1765044427440,12.69540246,132.8,132.79,0.2]
[1765044427632,5.16528198,132.8,132.79,0.2]
[1765044436472,8.26,132.84,132.79,0.2]
[1765044436473,5.16528198,132.84,132.79,0.2]
[1765044436671,5.16528198,132.82,132.8,8.26]
[1765044438279,7.52841978,132.83,132.8,8.26]
[1765044438575,5.16528198,132.82,132.8,8.26]
[1765044440478,5.16528198,132.81,132.79,0.2]
[1765044440667,5.16528198,132.81,132.79,8.48]
[1765044452096,5.16528198,132.81,132.79,8.46]
[1765044452097,5.83528198,132.8,132.79,8.46]
[1765044454303,5.16528198,132.8,132.79,8.46]
[1765044454973,5.83528198,132.8,132.79,8.46]
[1765044455382,5.16528198,132.8,132.79,8.46]
[1765044461002,5.83528198,132.8,132.79,8.46]
[1765044461203,5.83528198,132.8,132.79,0.2]
[1765044461402,5.83528198,132.8,132.79,8.46]
[1765044466411,5.83528198,132.8,132.79,0.2]
[1765044466614,5.83528198,132.8,132.79,8.46]
[1765044467203,13.36540246,132.8,132.79,0.2]
[1765044467584,32.39725409,132.8,132.79,0.2]
[1765044470419,16.308864,132.77,132.75,0.2]
[1765044470611,5.16528198,132.76,132.75,0.2]
[1765044470929,5.84528198,132.76,132.75,0.2]
[1765044471127,8.8610772,132.76,132.75,0.2]
[1765044472637,16.39346647,132.76,132.75,0.2]
[1765044488358,14.53555083,132.76,132.75,0.2]
[1765044494058,14.53555083,132.76,132.74,0.2]
[1765044494267,3.99736634,132.75,132.74,0.2]
[1765044494658,7.01384384,132.75,132.74,0.2]
[1765044495058,14.54680052,132.75,132.74,0.2]
[1765044517081,11.23943418,132.75,132.74,0.2]
[1765044517280,14.54680052,132.75,132.74,0.2]
[1765044529386,120.608864,132.74,132.73,0.2]
[1765044529574,124.63623034,132.74,132.73,0.2]
[1765044529990,127.65339043,132.74,132.73,0.2]
[1765044530797,135.18691461,132.74,132.73,0.2]
[1765044532196,135.18691461,132.74,132.72,0.2]
[1765044532197,26.69536187,132.74,132.72,0.2]
[1765044532399,16.308864,132.71,132.7,0.4]
[1765044532578,19.61623034,132.71,132.7,0.4]
[1765044536190,6.32452643,132.72,132.7,0.4]
[1765044536389,6.32452643,132.72,132.71,0.2]
[1765044536390,3.30736634,132.72,132.71,0.2]
[1765044536900,123.91623034,132.73,132.71,0.2]
[1765044537707,131.45040713,132.73,132.71,0.2]
[1765044538409,107.60736634,132.73,132.71,0.2]
[1765044538607,3.30736634,132.73,132.71,0.2]
[1765044550425,5.16785736,132.73,132.71,0.2]
[1765044555134,36.74599117,132.75,132.71,7.73515641]
[1765044555305,29.0097058,132.75,132.71,7.73515641]
[1765044555633,21.47672136,132.75,132.72,0.2]
[1765044555840,21.47672136,132.75,132.73,8.28]
[1765044556936,21.47672136,132.75,132.73,8.48]
[1765044559332,29.00968229,132.75,132.73,8.28]
[1765044559510,5.16785736,132.74,132.73,8.28]
[1765044559716,5.16785736,132.74,132.73,8.48]
[1765044559935,29.00968229,132.75,132.73,8.48]
[1765044561905,5.16785736,132.74,132.73,8.48]
[1765044563737,5.16785736,132.74,132.73,8.28]
[1765044566741,16.308864,132.74,132.73,8.48]
[1765044568447,16.308864,132.74,132.73,8.28]
[1765044568745,29.40603825,132.76,132.73,8.28]
[1765044568954,29.69930199,132.76,132.73,8.48]
[1765044569628,16.308864,132.76,132.74,0.2]
[1765044569947,16.308864,132.76,132.73,16.01405504]
[1765044570156,13.38981071,132.77,132.73,21.1819124]
[1765044570328,13.38981071,132.77,132.74,0.2]
[1765044570720,29.69867471,132.77,132.73,20.9819124]
[1765044570921,29.69867471,132.77,132.73,16.01405504]
[1765044572251,0.69,132.76,132.73,16.01405504]
[1765044572821,117.00229423,132.78,132.75,5.16785736]
[1765044573136,8.2212072,132.79,132.76,8.28]
[1765044573335,13.38906456,132.79,132.76,8.48]
[1765044573936,0.69,132.79,132.76,8.48]
[1765044574739,0.69,132.79,132.76,13.64785736]
[1765044575756,29.00691833,132.8,132.76,13.44785736]
[1765044575955,0.69,132.79,132.76,13.64785736]
[1765044578040,0.69,132.79,132.76,21.18013159]
[1765044578349,5.16785736,132.78,132.76,8.28]
[1765044578749,5.85785736,132.78,132.76,8.28]
[1765044579443,0.69,132.78,132.76,8.28]
[1765044580853,5.85785736,132.78,132.76,8.28]
[1765044581857,8.22140237,132.78,132.73,7.53405419]
[1765044582056,5.16785736,132.76,132.74,8.26]
[1765044582447,5.85785736,132.76,132.74,8.26]
[1765044588044,0.69,132.75,132.74,8.26]
[1765044588544,5.85785736,132.76,132.74,8.26]
[1765044589069,5.16785736,132.76,132.74,8.26]
[1765044589364,5.85785736,132.75,132.74,8.26]
[1765044590050,0.69,132.75,132.74,8.26]
[1765044593056,12.70026952,132.76,132.74,8.26]
[1765044593256,13.38026952,132.76,132.74,8.26]
[1765044594181,0.68,132.75,132.74,8.26]
[1765044595772,5.16785736,132.76,132.74,8.26]
[1765044596073,5.84785736,132.76,132.74,8.26]
[1765044597069,0.68,132.75,132.74,8.26]
[1765044599850,0.68,132.76,132.74,8.26]
[1765044600055,5.84785736,132.76,132.74,8.26]
[1765044601059,0.68,132.75,132.74,8.26]
[1765044604278,0.68,132.76,132.74,8.26]
[1765044606290,0.68,132.76,132.75,8.26]
[1765044607185,5.84785736,132.76,132.75,8.26]
[1765044612496,3.98616705,132.76,132.75,8.26]
[1765044620796,3.98616705,132.76,132.73,16.34364598]
[1765044620993,3.98616705,132.76,132.75,8.26]
[1765044631290,0.68,132.76,132.75,8.26]
[1765044631692,3.98616705,132.76,132.75,8.26]
[1765044640923,9.71994492,132.78,132.75,15.99295668]
[1765044641122,4.01616705,132.79,132.76,9.00994492]
[1765044641322,16.308864,132.78,132.77,8.26]
[1765044642102,16.308864,132.78,132.77,8.46]
[1765044642925,16.308864,132.78,132.77,8.26]
[1765044643127,17.018864,132.78,132.77,8.26]
[1765044644023,16.308864,132.78,132.77,8.26]
[1765044647315,17.018864,132.78,132.77,8.26]
[1765044648632,20.32503105,132.78,132.77,8.26]
[1765044652341,17.018864,132.78,132.77,8.26]
[1765044652639,16.308864,132.78,132.77,8.26]
[1765044653346,16.978864,132.78,132.77,8.26]
[1765044657338,20.28503105,132.78,132.77,8.26]
[1765044659846,20.28503105,132.78,132.74,7.53336599]
[1765044660020,0.67,132.77,132.75,24.60285442]
[1765044661747,32.6511361,132.78,132.75,24.80285442]
[1765044662048,36.62730315,132.78,132.75,24.80285442]
[1765044663348,33.3211361,132.78,132.75,24.80285442]
[1765044663542,16.978864,132.78,132.75,28.10902147]